[Event "Early-Titled-Tuesday-Blitz-September-26-2023"]
[Site "Chess.com"]
[Date "2023.09.26"]
[Round "2"]
[White "ATM622"]
[Black "Artemiki"]
[Result "0-1"]
[WhiteElo "2431"]
[BlackElo "2218"]
[TimeControl "180+1"]
[EndTime "8:17:47 PDT"]
[Termination "Artemiki won by checkmate"]

1. d4 {[%clk 0:02:57.1]} 1... Nf6 {[%clk 0:02:56.7]} 2. c4 {[%clk 0:02:56.1]}
2... c5 {[%clk 0:02:56.8]} 3. d5 {[%clk 0:02:55.4]} 3... e6 {[%clk 0:02:54.1]}
4. Nc3 {[%clk 0:02:52.1]} 4... exd5 {[%clk 0:02:54.1]} 5. cxd5 {[%clk
0:02:48.9]} 5... d6 {[%clk 0:02:54.8]} 6. e4 {[%clk 0:02:41.6]} 6... g6 {[%clk
0:02:55.1]} 7. g3 {[%clk 0:02:40.2]} 7... Bg7 {[%clk 0:02:55.1]} 8. Bg2 {[%clk
0:02:40.5]} 8... O-O {[%clk 0:02:55.2]} 9. Nge2 {[%clk 0:02:40.6]} 9... Re8
{[%clk 0:02:53.6]} 10. O-O {[%clk 0:02:40.1]} 10... b5 {[%clk 0:02:53.3]} 11.
Nxb5 {[%clk 0:02:36.7]} 11... Nxe4 {[%clk 0:02:52.8]} 12. f3 {[%clk 0:02:22.3]}
12... Nf6 {[%clk 0:02:36.1]} 13. Bf4 {[%clk 0:02:16.8]} 13... Ba6 {[%clk
0:02:30.2]} 14. a4 {[%clk 0:02:01]} 14... Bxb5 {[%clk 0:02:04.3]} 15. axb5
{[%clk 0:02:01.9]} 15... Nbd7 {[%clk 0:02:04.5]} 16. Bxd6 {[%clk 0:01:54.4]}
16... Nxd5 {[%clk 0:01:54]} 17. Qxd5 {[%clk 0:01:46.8]} 17... Rxe2 {[%clk
0:01:52.7]} 18. f4 {[%clk 0:01:47.2]} 18... Nb6 {[%clk 0:01:44.8]} 19. Qf3
{[%clk 0:01:22.7]} 19... Rxg2+ {[%clk 0:01:22.7]} 20. Kxg2 {[%clk 0:01:19.4]}
20... Qxd6 {[%clk 0:01:22.8]} 21. Rfd1 {[%clk 0:01:19.5]} 21... Qe6 {[%clk
0:01:19]} 22. Qc6 {[%clk 0:01:07.1]} 22... Qe2+ {[%clk 0:01:13]} 23. Kh1 {[%clk
0:01:06.4]} 23... Re8 {[%clk 0:00:48.7]} 24. Re1 {[%clk 0:00:47.9]} 24... Qxe1+
{[%clk 0:00:47.4]} 25. Rxe1 {[%clk 0:00:48.8]} 25... Rxe1+ {[%clk 0:00:47.6]}
26. Kg2 {[%clk 0:00:49.4]} 26... c4 {[%clk 0:00:41.3]} 27. Kf2 {[%clk
0:00:25.2]} 27... Rb1 {[%clk 0:00:29]} 28. Qe8+ {[%clk 0:00:22.5]} 28... Bf8
{[%clk 0:00:29.1]} 29. Qe5 {[%clk 0:00:20.4]} 29... Na4 {[%clk 0:00:26.3]} 30.
Kf3 {[%clk 0:00:12.5]} 30... Rxb2 {[%clk 0:00:23.5]} 31. h4 {[%clk 0:00:09.5]}
31... c3 {[%clk 0:00:20.8]} 32. Qc7 {[%clk 0:00:07.6]} 32... c2 {[%clk
0:00:18.3]} 33. Kg4 {[%clk 0:00:04.7]} 33... Nc5 {[%clk 0:00:16.8]} 34. Qxa7
{[%clk 0:00:01.2]} 34... c1=Q {[%clk 0:00:15.8]} 35. h5 {[%clk 0:00:01.2]} 35...
Qd1+ {[%clk 0:00:15.4]} 36. Kg5 {[%clk 0:00:01.2]} 36... Qxh5+ {[%clk
0:00:15.5]} 37. Kf6 {[%clk 0:00:02]} 37... Qf5# {[%clk 0:00:15.7]} 0-1

[Event "Early-Titled-Tuesday-Blitz-September-26-2023"]
[Site "Chess.com"]
[Date "2023.09.26"]
[Round "2"]
[White "JimDiGrease"]
[Black "Druid24"]
[Result "0-1"]
[WhiteElo "2836"]
[BlackElo "2620"]
[TimeControl "180+1"]
[EndTime "8:17:49 PDT"]
[Termination "Druid24 won by resignation"]

1. d4 {[%clk 0:03:00.9]} 1... Nf6 {[%clk 0:02:57.4]} 2. c4 {[%clk 0:03:01.4]}
2... e6 {[%clk 0:02:55.5]} 3. Bf4 {[%clk 0:03:02.1]} 3... d5 {[%clk 0:02:53.7]}
4. Nc3 {[%clk 0:03:02.2]} 4... Bb4 {[%clk 0:02:52.5]} 5. e3 {[%clk 0:03:02.4]}
5... O-O {[%clk 0:02:46.3]} 6. a3 {[%clk 0:02:38]} 6... Bxc3+ {[%clk 0:02:45.3]}
7. bxc3 {[%clk 0:02:38.3]} 7... c5 {[%clk 0:02:46.2]} 8. Nf3 {[%clk 0:02:33.6]}
8... Qa5 {[%clk 0:02:44.3]} 9. Qb3 {[%clk 0:02:21.9]} 9... Ne4 {[%clk 0:02:43]}
10. Rc1 {[%clk 0:02:17.9]} 10... b6 {[%clk 0:02:42.2]} 11. cxd5 {[%clk
0:02:06.8]} 11... exd5 {[%clk 0:02:41.4]} 12. Bxb8 {[%clk 0:01:34.3]} 12... Rxb8
{[%clk 0:02:40.1]} 13. Ne5 {[%clk 0:01:34.8]} 13... c4 {[%clk 0:02:11.6]} 14.
Qb2 {[%clk 0:01:15.7]} 14... Qa4 {[%clk 0:02:03]} 15. Qb4 {[%clk 0:01:14.2]}
15... Qe8 {[%clk 0:01:59.7]} 16. f3 {[%clk 0:01:08.7]} 16... f6 {[%clk
0:01:58.3]} 17. Nxc4 {[%clk 0:00:46.5]} 17... dxc4 {[%clk 0:01:56.6]} 18. Bxc4+
{[%clk 0:00:43.3]} 18... Kh8 {[%clk 0:01:56.2]} 19. fxe4 {[%clk 0:00:43.9]}
19... Bb7 {[%clk 0:01:48.3]} 20. O-O {[%clk 0:00:29.5]} 20... Qxe4 {[%clk
0:01:48.1]} 21. Rf3 {[%clk 0:00:30.1]} 21... f5 {[%clk 0:01:43.1]} 22. Qd6
{[%clk 0:00:26.7]} 22... Rbd8 {[%clk 0:01:39.7]} 23. Qf4 {[%clk 0:00:24.2]}
23... Qe7 {[%clk 0:01:37.7]} 24. Rf2 {[%clk 0:00:23.2]} 24... Qxa3 {[%clk
0:01:35.3]} 25. Rcf1 {[%clk 0:00:14.3]} 25... Be4 {[%clk 0:01:33.4]} 26. Be6
{[%clk 0:00:12.8]} 26... Qe7 {[%clk 0:01:27.8]} 27. Qe5 {[%clk 0:00:12.5]} 27...
Rde8 {[%clk 0:01:27.2]} 28. Bxf5 {[%clk 0:00:11.8]} 28... Qxe5 {[%clk
0:01:23.5]} 29. dxe5 {[%clk 0:00:12.7]} 29... Rxf5 {[%clk 0:01:23.7]} 30. Rxf5
{[%clk 0:00:13.6]} 30... Bxf5 {[%clk 0:01:24.6]} 31. Rxf5 {[%clk 0:00:14.1]}
31... Kg8 {[%clk 0:01:25.5]} 32. e4 {[%clk 0:00:12]} 32... g6 {[%clk 0:01:17.3]}
33. Rf6 {[%clk 0:00:10.4]} 33... Rxe5 {[%clk 0:01:14.4]} 34. Rc6 {[%clk
0:00:09.9]} 34... Rxe4 {[%clk 0:01:13.2]} 35. Rc7 {[%clk 0:00:10.4]} 35... a5
{[%clk 0:01:10.6]} 36. Rb7 {[%clk 0:00:10.4]} 36... Re6 {[%clk 0:01:08.2]} 37.
c4 {[%clk 0:00:09.3]} 37... Rc6 {[%clk 0:01:06.2]} 38. Kf2 {[%clk 0:00:09.9]}
38... a4 {[%clk 0:01:03.5]} 39. Kf3 {[%clk 0:00:06.9]} 39... Rxc4 {[%clk
0:00:59.6]} 40. Rxb6 {[%clk 0:00:07.3]} 40... Rc3+ {[%clk 0:01:00.5]} 41. Kf2
{[%clk 0:00:07.2]} 41... Rc2+ {[%clk 0:00:59.4]} 42. Kg3 {[%clk 0:00:07]} 42...
a3 {[%clk 0:01:00.3]} 43. Ra6 {[%clk 0:00:07.4]} 43... a2 {[%clk 0:01:00.8]} 44.
Ra7 {[%clk 0:00:07.9]} 44... Kf8 {[%clk 0:00:59.6]} 45. h3 {[%clk 0:00:07.8]}
45... Ke8 {[%clk 0:00:58.3]} 46. Kh2 {[%clk 0:00:08.2]} 46... Kd8 {[%clk
0:00:58.2]} 47. Kg3 {[%clk 0:00:07]} 47... Kc8 {[%clk 0:00:58.5]} 48. Kf3 {[%clk
0:00:06.6]} 48... Kb8 {[%clk 0:00:59]} 49. Ra4 {[%clk 0:00:05.7]} 49... Kb7
{[%clk 0:00:57.5]} 50. g4 {[%clk 0:00:05.5]} 50... Kb6 {[%clk 0:00:57.7]} 51.
Ke3 {[%clk 0:00:06.2]} 51... Kb5 {[%clk 0:00:58.2]} 52. Ra7 {[%clk 0:00:06.7]}
52... Kc4 {[%clk 0:00:56.9]} 53. Rc7+ {[%clk 0:00:04.9]} 53... Kb3 {[%clk
0:00:57.2]} 54. Rb7+ {[%clk 0:00:04.9]} 54... Kc3 {[%clk 0:00:56.6]} 55. Ra7
{[%clk 0:00:05.4]} 55... Kb2 {[%clk 0:00:56]} 56. Kd3 {[%clk 0:00:04.7]} 56...
Rc3+ {[%clk 0:00:54.8]} 57. Kd2 {[%clk 0:00:05]} 57... Rb3 {[%clk 0:00:52.2]}
0-1

[Event "Early-Titled-Tuesday-Blitz-September-26-2023"]
[Site "Chess.com"]
[Date "2023.09.26"]
[Round "2"]
[White "Haykoooo0o"]
[Black "Gergo85"]
[Result "1/2-1/2"]
[WhiteElo "2481"]
[BlackElo "2694"]
[TimeControl "180+1"]
[EndTime "8:17:50 PDT"]
[Termination "Game drawn by repetition"]

1. d4 {[%clk 0:03:00.9]} 1... d5 {[%clk 0:03:00.9]} 2. Nf3 {[%clk 0:03:00.6]}
2... Nc6 {[%clk 0:03:01.5]} 3. Bf4 {[%clk 0:03:00]} 3... Bg4 {[%clk 0:03:01.9]}
4. Nbd2 {[%clk 0:02:59.9]} 4... e6 {[%clk 0:03:02]} 5. e3 {[%clk 0:02:55.9]}
5... Bd6 {[%clk 0:03:02.5]} 6. Bxd6 {[%clk 0:02:56.4]} 6... cxd6 {[%clk
0:03:03]} 7. Be2 {[%clk 0:02:55.6]} 7... Nf6 {[%clk 0:03:03]} 8. O-O {[%clk
0:02:56.2]} 8... O-O {[%clk 0:03:03.6]} 9. c4 {[%clk 0:02:56.8]} 9... Rc8 {[%clk
0:03:02]} 10. cxd5 {[%clk 0:02:56.7]} 10... Nxd5 {[%clk 0:03:02.4]} 11. a3
{[%clk 0:02:57]} 11... h6 {[%clk 0:02:52.1]} 12. Rc1 {[%clk 0:02:55.6]} 12...
Nb6 {[%clk 0:02:42.9]} 13. Qb3 {[%clk 0:02:51.2]} 13... Qe7 {[%clk 0:02:22.4]}
14. Nc4 {[%clk 0:02:18.8]} 14... Nxc4 {[%clk 0:02:19.6]} 15. Qxc4 {[%clk
0:02:17.7]} 15... e5 {[%clk 0:02:04.2]} 16. dxe5 {[%clk 0:01:47.1]} 16... Nxe5
{[%clk 0:02:04.3]} 17. Qd5 {[%clk 0:01:27.9]} 17... Rc5 {[%clk 0:02:04.3]} 18.
Rxc5 {[%clk 0:01:19.4]} 18... dxc5 {[%clk 0:02:04.7]} 19. Qxe5 {[%clk
0:01:07.4]} 19... Qxe5 {[%clk 0:02:04.4]} 20. Nxe5 {[%clk 0:01:08.1]} 20... Bxe2
{[%clk 0:02:05.2]} 21. Re1 {[%clk 0:00:59.5]} 21... Rd8 {[%clk 0:02:04.1]} 22.
f3 {[%clk 0:00:54.5]} 22... Rd2 {[%clk 0:02:03.5]} 23. Rc1 {[%clk 0:00:46.4]}
23... b6 {[%clk 0:01:41.2]} 24. b4 {[%clk 0:00:45.9]} 24... f6 {[%clk
0:01:38.5]} 25. Nc4 {[%clk 0:00:38.2]} 25... Ra2 {[%clk 0:01:21]} 26. bxc5
{[%clk 0:00:37]} 26... bxc5 {[%clk 0:01:21.9]} 27. Nd6 {[%clk 0:00:26.4]} 27...
Rxa3 {[%clk 0:00:59.6]} 28. Kf2 {[%clk 0:00:19.4]} 28... Ra2 {[%clk 0:00:49.3]}
29. Rxc5 {[%clk 0:00:18.8]} 29... Bd3+ {[%clk 0:00:45.6]} 30. Kg3 {[%clk
0:00:18.7]} 30... a5 {[%clk 0:00:45.7]} 31. Rc8+ {[%clk 0:00:18]} 31... Kh7
{[%clk 0:00:45]} 32. Ra8 {[%clk 0:00:18.9]} 32... Bf1 {[%clk 0:00:44.6]} 33. e4
{[%clk 0:00:15.8]} 33... Rxg2+ {[%clk 0:00:36]} 34. Kf4 {[%clk 0:00:16.2]} 34...
Ra2 {[%clk 0:00:36.9]} 35. Ra7 {[%clk 0:00:15.7]} 35... Kg8 {[%clk 0:00:20.4]}
36. Nf5 {[%clk 0:00:15.7]} 36... g5+ {[%clk 0:00:20.3]} 37. Ke3 {[%clk
0:00:13.4]} 37... Rxh2 {[%clk 0:00:19.9]} 38. Rxa5 {[%clk 0:00:11.6]} 38... Bc4
{[%clk 0:00:15.8]} 39. Ra8+ {[%clk 0:00:10.9]} 39... Kh7 {[%clk 0:00:16.1]} 40.
Ra7+ {[%clk 0:00:11.4]} 40... Kg6 {[%clk 0:00:16.6]} 41. Rg7+ {[%clk 0:00:10.9]}
41... Kh5 {[%clk 0:00:16.8]} 42. Rh7 {[%clk 0:00:11.5]} 42... Kg6 {[%clk
0:00:12.3]} 43. Rg7+ {[%clk 0:00:11.4]} 43... Kh5 {[%clk 0:00:12.9]} 44. Rh7
{[%clk 0:00:11.6]} 44... Kg6 {[%clk 0:00:10.1]} 45. Rg7+ {[%clk 0:00:10.9]}
1/2-1/2

[Event "Early-Titled-Tuesday-Blitz-September-26-2023"]
[Site "Chess.com"]
[Date "2023.09.26"]
[Round "2"]
[White "Agibileg"]
[Black "AnaKuchava"]
[Result "1-0"]
[WhiteElo "2662"]
[BlackElo "2236"]
[TimeControl "180+1"]
[EndTime "8:17:51 PDT"]
[Termination "Agibileg won by checkmate"]

1. d4 {[%clk 0:02:59.8]} 1... d5 {[%clk 0:02:59.5]} 2. c4 {[%clk 0:02:59.8]}
2... e6 {[%clk 0:02:59.5]} 3. Nc3 {[%clk 0:02:59.6]} 3... Be7 {[%clk 0:02:59.2]}
4. Nf3 {[%clk 0:02:58.8]} 4... Nf6 {[%clk 0:02:58.2]} 5. g3 {[%clk 0:02:56.7]}
5... O-O {[%clk 0:02:45.9]} 6. Bg2 {[%clk 0:02:56.9]} 6... c5 {[%clk 0:02:44.1]}
7. cxd5 {[%clk 0:02:47.8]} 7... exd5 {[%clk 0:02:36.2]} 8. O-O {[%clk
0:02:47.5]} 8... Nc6 {[%clk 0:02:34.6]} 9. Bg5 {[%clk 0:02:39.2]} 9... c4 {[%clk
0:02:22.1]} 10. Ne5 {[%clk 0:02:25.5]} 10... Be6 {[%clk 0:02:17.6]} 11. b3
{[%clk 0:02:03.8]} 11... cxb3 {[%clk 0:02:10.7]} 12. Nxc6 {[%clk 0:02:02.5]}
12... bxc6 {[%clk 0:02:07]} 13. Qxb3 {[%clk 0:02:02.6]} 13... Qb6 {[%clk
0:02:00.8]} 14. Rfd1 {[%clk 0:01:47.7]} 14... Qxb3 {[%clk 0:01:54.4]} 15. axb3
{[%clk 0:01:47.7]} 15... Rfb8 {[%clk 0:01:54.5]} 16. Rdb1 {[%clk 0:01:16]} 16...
h6 {[%clk 0:01:43.8]} 17. Bf4 {[%clk 0:01:13.7]} 17... Rb4 {[%clk 0:01:42.8]}
18. e3 {[%clk 0:00:56.9]} 18... Bf5 {[%clk 0:01:34.2]} 19. Rb2 {[%clk
0:00:56.4]} 19... a5 {[%clk 0:01:16]} 20. Bc7 {[%clk 0:00:52.4]} 20... a4 {[%clk
0:00:39.5]} 21. Rxa4 {[%clk 0:00:48.2]} 21... Raxa4 {[%clk 0:00:36.3]} 22. Nxa4
{[%clk 0:00:49.1]} 22... Bd3 {[%clk 0:00:25.1]} 23. Bf1 {[%clk 0:00:41.1]} 23...
Bb5 {[%clk 0:00:17.3]} 24. Bxb5 {[%clk 0:00:29.1]} 24... Rxb5 {[%clk 0:00:12.6]}
25. Nc3 {[%clk 0:00:29.3]} 25... Rb7 {[%clk 0:00:11.3]} 26. Be5 {[%clk
0:00:29.1]} 26... Nd7 {[%clk 0:00:05.7]} 27. Kf1 {[%clk 0:00:24.9]} 27... Nxe5
{[%clk 0:00:04.7]} 28. dxe5 {[%clk 0:00:25]} 28... Bb4 {[%clk 0:00:04.4]} 29.
Na4 {[%clk 0:00:22.2]} 29... Kf8 {[%clk 0:00:01.7]} 30. Ke2 {[%clk 0:00:19]}
30... Ke7 {[%clk 0:00:01.6]} 31. Kd3 {[%clk 0:00:17.2]} 31... Ke6 {[%clk
0:00:01.9]} 32. f4 {[%clk 0:00:16.7]} 32... Rc7 {[%clk 0:00:02.1]} 33. Rc2
{[%clk 0:00:15.5]} 33... c5 {[%clk 0:00:02.7]} 34. e4 {[%clk 0:00:14.3]} 34...
dxe4+ {[%clk 0:00:02]} 35. Kxe4 {[%clk 0:00:15.2]} 35... Rd7 {[%clk 0:00:02.1]}
36. Nxc5+ {[%clk 0:00:14.8]} 36... Bxc5 {[%clk 0:00:02]} 37. Rxc5 {[%clk
0:00:15.7]} 37... Rd1 {[%clk 0:00:02.3]} 38. Rc6+ {[%clk 0:00:13.5]} 38... Ke7
{[%clk 0:00:02.4]} 39. Rc7+ {[%clk 0:00:13.4]} 39... Ke6 {[%clk 0:00:02.4]} 40.
f5# {[%clk 0:00:13.4]} 1-0

[Event "Early-Titled-Tuesday-Blitz-September-26-2023"]
[Site "Chess.com"]
[Date "2023.09.26"]
[Round "2"]
[White "Fy_Rakotomaharo"]
[Black "Dacean99"]
[Result "1-0"]
[WhiteElo "2713"]
[BlackElo "2526"]
[TimeControl "180+1"]
[EndTime "8:17:55 PDT"]
[Termination "Fy_Rakotomaharo won by resignation"]

1. Nf3 {[%clk 0:03:00.9]} 1... d5 {[%clk 0:02:55.7]} 2. b3 {[%clk 0:03:00.6]}
2... Nf6 {[%clk 0:02:51.6]} 3. Bb2 {[%clk 0:03:00.8]} 3... c5 {[%clk 0:02:52.1]}
4. e3 {[%clk 0:02:59.9]} 4... Nc6 {[%clk 0:02:51.9]} 5. Bb5 {[%clk 0:03:00]}
5... Bg4 {[%clk 0:02:46.6]} 6. h3 {[%clk 0:02:59.5]} 6... Bh5 {[%clk 0:02:44.8]}
7. g4 {[%clk 0:02:59.5]} 7... Bg6 {[%clk 0:02:43.9]} 8. Ne5 {[%clk 0:02:59.9]}
8... Rc8 {[%clk 0:02:42.9]} 9. d3 {[%clk 0:02:56.5]} 9... e6 {[%clk 0:02:42.2]}
10. h4 {[%clk 0:02:49.5]} 10... Qa5+ {[%clk 0:02:28.9]} 11. Nc3 {[%clk
0:02:49.2]} 11... d4 {[%clk 0:02:28.3]} 12. Bxc6+ {[%clk 0:02:43.6]} 12... bxc6
{[%clk 0:02:27.5]} 13. Nc4 {[%clk 0:02:43.3]} 13... Qc7 {[%clk 0:02:19.4]} 14.
Na4 {[%clk 0:02:34.5]} 14... dxe3 {[%clk 0:02:10.1]} 15. Nxe3 {[%clk 0:02:32.4]}
15... h5 {[%clk 0:02:03.9]} 16. g5 {[%clk 0:02:11.4]} 16... Nd5 {[%clk
0:02:02.9]} 17. Qf3 {[%clk 0:02:09.3]} 17... Qa5+ {[%clk 0:01:38.9]} 18. Kf1
{[%clk 0:02:08.6]} 18... Nxe3+ {[%clk 0:01:29.6]} 19. Qxe3 {[%clk 0:01:56.3]}
19... Bd6 {[%clk 0:01:09.5]} 20. Bxg7 {[%clk 0:01:52.8]} 20... Rg8 {[%clk
0:01:08.9]} 21. Bc3 {[%clk 0:01:52.6]} 21... Qd8 {[%clk 0:01:08.2]} 22. Re1
{[%clk 0:01:37.8]} 22... Be7 {[%clk 0:01:07.9]} 23. Kg2 {[%clk 0:01:18.8]} 23...
Bf5 {[%clk 0:01:02.5]} 24. Nxc5 {[%clk 0:00:51.6]} 24... Bxg5 {[%clk 0:00:37.1]}
25. hxg5 {[%clk 0:00:45.7]} 25... Rxg5+ {[%clk 0:00:38]} 26. Kf1 {[%clk
0:00:45.5]} 26... Qd5 {[%clk 0:00:33.6]} 27. Ne4 {[%clk 0:00:32.4]} 27... Bxe4
{[%clk 0:00:31.2]} 28. dxe4 {[%clk 0:00:32.3]} 28... Qb5+ {[%clk 0:00:29.7]} 29.
Qd3 {[%clk 0:00:26.1]} 29... Qc5 {[%clk 0:00:28]} 30. Bd4 {[%clk 0:00:20.6]}
30... Qd6 {[%clk 0:00:26.6]} 31. Be3 {[%clk 0:00:19.4]} 31... Qxd3+ {[%clk
0:00:25.4]} 32. cxd3 {[%clk 0:00:20.3]} 32... Ra5 {[%clk 0:00:25.3]} 33. Re2
{[%clk 0:00:19.4]} 33... Rb8 {[%clk 0:00:23.5]} 34. Rc2 {[%clk 0:00:19.5]} 34...
Rbb5 {[%clk 0:00:24]} 35. Ke2 {[%clk 0:00:19.6]} 35... Kd7 {[%clk 0:00:23.7]}
36. f4 {[%clk 0:00:17.5]} 36... f6 {[%clk 0:00:22.4]} 37. Rg1 {[%clk 0:00:17.5]}
37... h4 {[%clk 0:00:20.4]} 38. Rg7+ {[%clk 0:00:16.6]} 38... Kd6 {[%clk
0:00:21]} 39. Rh7 {[%clk 0:00:17.2]} 39... Rh5 {[%clk 0:00:20]} 40. Rxh5 {[%clk
0:00:17.8]} 40... Rxh5 {[%clk 0:00:20.1]} 41. Kf3 {[%clk 0:00:18.7]} 41... Rh8
{[%clk 0:00:18.1]} 42. Rh2 {[%clk 0:00:19]} 42... f5 {[%clk 0:00:18.6]} 43. Bf2
{[%clk 0:00:19.1]} 43... h3 {[%clk 0:00:18.4]} 44. Bd4 {[%clk 0:00:18.7]} 44...
Rh5 {[%clk 0:00:17.5]} 45. Be5+ {[%clk 0:00:18.8]} 45... Kc5 {[%clk 0:00:17.3]}
46. Kg3 {[%clk 0:00:19.3]} 46... fxe4 {[%clk 0:00:16.6]} 47. dxe4 {[%clk
0:00:20.2]} 47... Kb4 {[%clk 0:00:14.5]} 48. Rxh3 {[%clk 0:00:20.2]} 48... Rxh3+
{[%clk 0:00:14.4]} 49. Kxh3 {[%clk 0:00:21.1]} 49... Ka3 {[%clk 0:00:13.1]} 50.
f5 {[%clk 0:00:21.6]} 50... exf5 {[%clk 0:00:13.7]} 51. exf5 {[%clk 0:00:22.5]}
51... Kxa2 {[%clk 0:00:14]} 52. f6 {[%clk 0:00:23.1]} 52... c5 {[%clk
0:00:14.9]} 53. f7 {[%clk 0:00:23.7]} 53... Kxb3 {[%clk 0:00:15.8]} 54. f8=Q
{[%clk 0:00:23.9]} 54... c4 {[%clk 0:00:16.7]} 55. Qb8+ {[%clk 0:00:23.8]} 1-0

[Event "Early-Titled-Tuesday-Blitz-September-26-2023"]
[Site "Chess.com"]
[Date "2023.09.26"]
[Round "2"]
[White "BlueWizzard"]
[Black "lolo9292"]
[Result "1-0"]
[WhiteElo "2916"]
[BlackElo "2179"]
[TimeControl "180+1"]
[EndTime "8:17:58 PDT"]
[Termination "BlueWizzard won on time"]

1. d4 {[%clk 0:03:00.9]} 1... d5 {[%clk 0:02:59.9]} 2. Nc3 {[%clk 0:03:01.4]}
2... Nf6 {[%clk 0:02:58.6]} 3. Nf3 {[%clk 0:03:02]} 3... c5 {[%clk 0:02:53.3]}
4. Bg5 {[%clk 0:03:01.6]} 4... e6 {[%clk 0:02:50.2]} 5. e4 {[%clk 0:03:01.5]}
5... cxd4 {[%clk 0:02:46.2]} 6. Qxd4 {[%clk 0:02:58.3]} 6... Nc6 {[%clk
0:02:45.2]} 7. Bb5 {[%clk 0:02:58]} 7... Be7 {[%clk 0:02:43.1]} 8. exd5 {[%clk
0:02:47.7]} 8... exd5 {[%clk 0:02:38.3]} 9. Ne5 {[%clk 0:02:44.2]} 9... Bd7
{[%clk 0:02:36.8]} 10. Bxc6 {[%clk 0:02:44.1]} 10... bxc6 {[%clk 0:02:36]} 11.
O-O {[%clk 0:02:44.5]} 11... O-O {[%clk 0:02:34.9]} 12. Rfe1 {[%clk 0:02:44.6]}
12... Re8 {[%clk 0:02:17.9]} 13. Re2 {[%clk 0:02:33.3]} 13... Rb8 {[%clk
0:02:10.9]} 14. Rae1 {[%clk 0:02:22.8]} 14... Bf8 {[%clk 0:02:04.3]} 15. Nxd7
{[%clk 0:02:15.1]} 15... Qxd7 {[%clk 0:02:01.1]} 16. Bxf6 {[%clk 0:02:11]} 16...
gxf6 {[%clk 0:02:02]} 17. b3 {[%clk 0:02:02.8]} 17... Rxe2 {[%clk 0:01:59.2]}
18. Rxe2 {[%clk 0:02:03]} 18... Re8 {[%clk 0:01:54.9]} 19. Kf1 {[%clk
0:01:56.7]} 19... f5 {[%clk 0:01:51]} 20. Rxe8 {[%clk 0:01:43.4]} 20... Qxe8
{[%clk 0:01:50.9]} 21. Qxa7 {[%clk 0:01:42.2]} 21... Bg7 {[%clk 0:01:50.6]} 22.
Qc5 {[%clk 0:01:35.4]} 22... Qe5 {[%clk 0:01:49.2]} 23. Nd1 {[%clk 0:01:26.9]}
23... Qxh2 {[%clk 0:01:46.5]} 24. Qxc6 {[%clk 0:01:20.9]} 24... Qh1+ {[%clk
0:01:42.4]} 25. Ke2 {[%clk 0:01:21.4]} 25... Qxg2 {[%clk 0:01:41.9]} 26. Qc8+
{[%clk 0:01:21.2]} 26... Bf8 {[%clk 0:01:41.2]} 27. Qxf5 {[%clk 0:01:22.1]}
27... d4 {[%clk 0:01:18.8]} 28. Qf3 {[%clk 0:01:17.7]} 28... Qg6 {[%clk
0:01:11.7]} 29. Qg3 {[%clk 0:01:16]} 29... Qxg3 {[%clk 0:01:09.9]} 30. fxg3
{[%clk 0:01:16.9]} 30... Bd6 {[%clk 0:01:10.1]} 31. g4 {[%clk 0:01:09.2]} 31...
Kg7 {[%clk 0:01:10.2]} 32. Kd3 {[%clk 0:01:08.9]} 32... Be5 {[%clk 0:01:09.9]}
33. a4 {[%clk 0:01:01]} 33... Kg6 {[%clk 0:01:09.4]} 34. Ke4 {[%clk 0:00:58.5]}
34... f6 {[%clk 0:01:09]} 35. a5 {[%clk 0:00:57.6]} 35... Kg5 {[%clk 0:01:08.4]}
36. Nf2 {[%clk 0:00:53.5]} 36... Bg3 {[%clk 0:01:06.2]} 37. a6 {[%clk
0:00:53.9]} 37... Bb8 {[%clk 0:00:27.8]} 38. Kd5 {[%clk 0:00:36.6]} 38... Ba7
{[%clk 0:00:24.4]} 39. Kc6 {[%clk 0:00:34.3]} 39... d3 {[%clk 0:00:23.9]} 40.
Nxd3 {[%clk 0:00:32.5]} 40... Kxg4 {[%clk 0:00:24.1]} 41. Kb7 {[%clk 0:00:30.3]}
41... Bd4 {[%clk 0:00:22.8]} 42. a7 {[%clk 0:00:24.5]} 42... Bxa7 {[%clk
0:00:21.8]} 43. Kxa7 {[%clk 0:00:25.4]} 43... f5 {[%clk 0:00:22.4]} 44. b4
{[%clk 0:00:25.4]} 44... f4 {[%clk 0:00:22.8]} 45. b5 {[%clk 0:00:25.7]} 45...
f3 {[%clk 0:00:23.7]} 46. b6 {[%clk 0:00:25.8]} 46... f2 {[%clk 0:00:23.8]} 47.
Nxf2+ {[%clk 0:00:25.9]} 1-0

[Event "Early-Titled-Tuesday-Blitz-September-26-2023"]
[Site "Chess.com"]
[Date "2023.09.26"]
[Round "2"]
[White "Antik5"]
[Black "Korchmar_Vasiliy"]
[Result "0-1"]
[WhiteElo "2373"]
[BlackElo "2703"]
[TimeControl "180+1"]
[EndTime "8:17:59 PDT"]
[Termination "Korchmar_Vasiliy won on time"]

1. c4 {[%clk 0:03:00.9]} 1... e6 {[%clk 0:02:58.4]} 2. Nc3 {[%clk 0:03:00.7]}
2... d5 {[%clk 0:02:58.3]} 3. d4 {[%clk 0:03:01.4]} 3... Nf6 {[%clk 0:02:58]} 4.
cxd5 {[%clk 0:03:01.7]} 4... exd5 {[%clk 0:02:57.9]} 5. Bg5 {[%clk 0:03:02.3]}
5... Be7 {[%clk 0:02:57.8]} 6. e3 {[%clk 0:03:02.8]} 6... h6 {[%clk 0:02:58]} 7.
Bh4 {[%clk 0:03:02.3]} 7... Bg4 {[%clk 0:02:58.3]} 8. Qc2 {[%clk 0:02:56.1]}
8... O-O {[%clk 0:02:56.4]} 9. Bd3 {[%clk 0:02:55.2]} 9... c5 {[%clk 0:02:48.7]}
10. dxc5 {[%clk 0:02:50.3]} 10... Nc6 {[%clk 0:02:49.1]} 11. Nge2 {[%clk
0:02:43.6]} 11... Bxc5 {[%clk 0:02:34.2]} 12. Bxf6 {[%clk 0:02:07.5]} 12... Qxf6
{[%clk 0:02:33.9]} 13. Nxd5 {[%clk 0:02:07.7]} 13... Qg5 {[%clk 0:02:29]} 14.
Nec3 {[%clk 0:02:02.2]} 14... Be6 {[%clk 0:02:17]} 15. Nf4 {[%clk 0:02:01.1]}
15... Nb4 {[%clk 0:02:13.7]} 16. Qe2 {[%clk 0:01:48.6]} 16... Bg4 {[%clk
0:02:06]} 17. f3 {[%clk 0:01:40.8]} 17... Nxd3+ {[%clk 0:02:00.1]} 18. Nxd3
{[%clk 0:01:34]} 18... Bxe3 {[%clk 0:01:52.8]} 19. Ne4 {[%clk 0:01:25.4]} 19...
Qa5+ {[%clk 0:01:23.6]} 20. b4 {[%clk 0:01:25.3]} 20... Qb6 {[%clk 0:01:24.1]}
21. fxg4 {[%clk 0:01:23.4]} 21... Qd4 {[%clk 0:01:12.9]} 22. Rd1 {[%clk
0:00:48.1]} 22... Qxe4 {[%clk 0:01:12.8]} 23. Qf3 {[%clk 0:00:40]} 23... Qe6
{[%clk 0:01:04.5]} 24. Kf1 {[%clk 0:00:24.1]} 24... Rad8 {[%clk 0:01:02]} 25. h4
{[%clk 0:00:15.9]} 25... Rfe8 {[%clk 0:00:42.9]} 26. Rh3 {[%clk 0:00:14.8]}
26... Qxa2 {[%clk 0:00:42.1]} 27. Qe2 {[%clk 0:00:10.1]} 27... Qa4 {[%clk
0:00:29.9]} 28. Re1 {[%clk 0:00:07.3]} 28... Bb6 {[%clk 0:00:25]} 29. Qf3 {[%clk
0:00:02.6]} 29... Rxe1+ {[%clk 0:00:25.5]} 30. Nxe1 {[%clk 0:00:02.4]} 30...
Qxb4 {[%clk 0:00:21.6]} 31. Qe2 {[%clk 0:00:02.3]} 31... Qd4 {[%clk 0:00:18.6]}
32. Nf3 {[%clk 0:00:01.2]} 32... Qa1+ {[%clk 0:00:17.4]} 33. Ne1 {[%clk
0:00:01.6]} 33... a5 {[%clk 0:00:12.2]} 34. g5 {[%clk 0:00:02.1]} 34... Qd4
{[%clk 0:00:09.7]} 35. Nf3 {[%clk 0:00:01.8]} 35... Qd1+ {[%clk 0:00:10.1]} 36.
Qxd1 {[%clk 0:00:01.9]} 36... Rxd1+ {[%clk 0:00:11]} 37. Ke2 {[%clk 0:00:02.7]}
37... Rb1 {[%clk 0:00:11.6]} 38. gxh6 {[%clk 0:00:02.9]} 38... gxh6 {[%clk
0:00:12.5]} 39. Rg3+ {[%clk 0:00:03.1]} 39... Kf8 {[%clk 0:00:13.2]} 40. Ne5
{[%clk 0:00:03]} 40... Ke7 {[%clk 0:00:11.7]} 41. Rg4 {[%clk 0:00:02.7]} 41...
Ke6 {[%clk 0:00:07.8]} 42. Nc4 {[%clk 0:00:02.8]} 42... Bc7 {[%clk 0:00:07.2]}
43. g3 {[%clk 0:00:01.4]} 43... b5 {[%clk 0:00:07.6]} 0-1